Workbook

Sheet Synthèse
B1: ACCORDS INTERNATIONAUX
B4: Paiements des prestations en espèces d'incapacité temporaire
B5: ="(assurances maladie-maternité) en "&'Détail Bilatéraux'!$U$2 -> (assurances maladie-maternité) en 2016
A7: CONVENTIONS BILATERALES | C7: Transfert de résidence autorisé | F7: Séjour temporaire | I7: Détachement | L7: Total des
B8: Pays | C8: Nombre de | D8: Nombre de jours | E8: Montant | F8: Nombre de | G8: Nombre de jours | H8: Montant | I8: Nombre de | J8: Nombre de jours | K8: Montant | L8: montants
C9: bénéficiaires | D9: indemnisés | E9: (euros) | F9: bénéficiaires | G9: indemnisés | H9: (euros) | I9: bénéficiaires | J9: indemnisés | K9: (euros) | L9: (euros)
B10: Algérie | C10: 220 | D10: 6042 | E10: 180249.46 | F10: 14 | G10: 392 | H10: 11576.45 | I10: 0 | J10: 0 | K10: 0 | L10: 191825.91
B11: Andorre | C11: 12 | D11: 62 | E11: 2204.55 | F11: 1 | G11: 3 | H11: 95.52 | I11: 1 | J11: 2 | K11: 85.94 | L11: 2386.01 | N11: 1 | O11: =INDEX($B$10:$L$41,MATCH(LARGE(($L$10:$L$34,$L$39:$L$41),N11),$L$10:$L$41,0),1) -> Maroc | P11: =INDEX($B$10:$L$41,MATCH(LARGE(($L$10:$L$34,$L$39:$L$41),N11),$L$10:$L$41,0),11) -> 339516.95 | Q11: =MAX(L10:L34,L39:L41)*1.1 -> 373468.645
B12: Bénin | C12: 5 | D12: 139 | E12: 4393.47 | F12: 0 | G12: 0 | H12: 0 | L12: 4393.47 | N12: =N11+1 -> 2 | O12: =INDEX($B$10:$L$41,MATCH(LARGE(($L$10:$L$34,$L$39:$L$41),N12),$L$10:$L$41,0),1) -> Turquie | P12: =INDEX($B$10:$L$41,MATCH(LARGE(($L$10:$L$34,$L$39:$L$41),N12),$L$10:$L$41,0),11) -> 206534.02
B13: Bosnie-Herzégovine | C13: 4 | D13: 107 | E13: 4608.62 | F13: 1 | G13: 24 | H13: 597.84 | I13: 0 | J13: 0 | K13: 0 | L13: 5206.46 | N13: =N12+1 -> 3 | O13: =INDEX($B$10:$L$41,MATCH(LARGE(($L$10:$L$34,$L$39:$L$41),N13),$L$10:$L$41,0),1) -> Tunisie | P13: =INDEX($B$10:$L$41,MATCH(LARGE(($L$10:$L$34,$L$39:$L$41),N13),$L$10:$L$41,0),11) -> 205364.03
B14: Cameroun | C14: 3 | D14: 73 | E14: 3708.88 | I14: 0 | J14: 0 | K14: 0 | L14: 3708.88 | N14: 4 | O14: =INDEX($B$10:$L$41,MATCH(LARGE(($L$10:$L$34,$L$39:$L$41),N14),$L$10:$L$41,0),1) -> Algérie | P14: =INDEX($B$10:$L$41,MATCH(LARGE(($L$10:$L$34,$L$39:$L$41),N14),$L$10:$L$41,0),11) -> 191825.91
B15: Cap-Vert | C15: 4 | D15: 145 | E15: 4485.99 | F15: 0 | G15: 0 | H15: 0 | I15: 0 | J15: 0 | K15: 0 | L15: 4485.99 | N15: 5 | O15: =INDEX($B$10:$L$41,MATCH(LARGE(($L$10:$L$34,$L$39:$L$41),N15),$L$10:$L$41,0),1) -> Sénégal | P15: =INDEX($B$10:$L$41,MATCH(LARGE(($L$10:$L$34,$L$39:$L$41),N15),$L$10:$L$41,0),11) -> 54580.82
B16: Congo | C16: 7 | D16: 181 | E16: 5358.35 | L16: 5358.35
B17: Côte d'Ivoire | C17: 15 | D17: 381 | E17: 10273.47 | I17: 0 | J17: 0 | K17: 0 | L17: 10273.47
B18: Gabon | C18: 0 | D18: 0 | E18: 0 | F18: 0 | G18: 0 | H18: 0 | I18: 0 | J18: 0 | K18: 0 | L18: 0
B19: Guernesey | F19: 0 | G19: 0 | H19: 0 | L19: 0
B20: Jersey | C20: 1 | D20: 5 | E20: 213 | F20: 0 | G20: 0 | H20: 0 | L20: 213
B21: Kosovo | C21: 7 | D21: 171 | E21: 6298.47 | F21: 0 | G21: 0 | H21: 0 | I21: 0 | J21: 0 | K21: 0 | L21: 6298.47
B22: Macédoine | C22: 3 | D22: 243 | E22: 8631.44 | F22: 0 | G22: 0 | H22: 0 | I22: 0 | J22: 0 | K22: 0 | L22: 8631.44
B23: Madagascar | C23: 19 | D23: 767 | E23: 29413.51 | I23: 0 | J23: 0 | K23: 0 | L23: 29413.51
B24: Mali | C24: 14 | D24: 779 | E24: 23749.15 | F24: 9 | G24: 296 | H24: 8576.8 | I24: 0 | J24: 0 | K24: 0 | L24: 32325.95
B25: Maroc | C25: 309 | D25: 9791 | E25: 308041.43 | F25: 59 | G25: 1147 | H25: 31475.52 | I25: 0 | J25: 0 | K25: 0 | L25: 339516.95
B26: Mauritanie | C26: 0 | D26: 0 | E26: 0 | I26: 0 | J26: 0 | K26: 0 | L26: 0
B27: Monténégro | C27: 13 | D27: 170 | E27: 5475.29 | F27: 1 | G27: 8 | H27: 248.4 | I27: 0 | J27: 0 | K27: 0 | L27: 5723.69
B28: Niger | C28: 0 | D28: 0 | E28: 0 | F28: 0 | G28: 0 | H28: 0 | L28: 0
B29: Québec | C29: 39 | D29: 988 | E29: 40064.27 | F29: 2 | G29: 53 | H29: 1141.36 | I29: 0 | J29: 0 | K29: 0 | L29: 41205.63
B30: Sénégal | C30: 57 | D30: 1677 | E30: 54580.82 | L30: 54580.82
B31: Serbie | C31: 51 | D31: 1630 | E31: 48203.09 | F31: 0 | G31: 0 | H31: 0 | I31: 0 | J31: 0 | K31: 0 | L31: 48203.09
B32: Togo | C32: 7 | D32: 165 | E32: 4536.5 | F32: 0 | G32: 0 | H32: 0 | L32: 4536.5
B33: Tunisie | C33: 147 | D33: 4470 | E33: 163640.4 | F33: 33 | G33: 1216 | H33: 41723.63 | I33: 0 | J33: 0 | K33: 0 | L33: 205364.03
B34: Turquie | C34: 196 | D34: 6475 | E34: 200294.62 | F34: 9 | G34: 183 | H34: 6239.4 | I34: 0 | J34: 0 | K34: 0 | L34: 206534.02
B35: ="Sous-total "&'Détail Bilatéraux'!$U$2 -> Sous-total 2016 | C35: 1133 | D35: 34461 | E35: 1108424.78 | F35: 129 | G35: 3322 | H35: 101674.92 | I35: 1 | J35: 2 | K35: 85.94 | L35: 1210185.64
B36: ="Sous-total "&'Détail Bilatéraux'!$U$2-1 -> Sous-total 2015 | C36: 1151 | D36: 32989 | E36: 1012609.69 | F36: 162 | G36: 3617 | H36: 112318.81 | I36: 2 | J36: 20 | K36: 803.33 | L36: 1125731.83
B37: % évolution | C37: =IF(C36<>0,(C35-C36)/C36*100,"-") -> -1.563857515 | D37: =IF(D36<>0,(D35-D36)/D36*100,"-") -> 4.462093425 | E37: 9.462193671 | F37: -20.37037037 | G37: -8.155930329 | H37: -9.476498193 | I37: =IF(I36<>0,(I35-I36)/I36*100,"-") -> -50 | J37: =IF(J36<>0,(J35-J36)/J36*100,"-") -> -90 | K37: -89.3020303 | L37: 7.502125084
A39: DECRETS DE COORDINATION | B39: Nouvelle-Calédonie | C39: 7 | D39: 270 | E39: 9101.31 | F39: 1 | G39: 2 | H39: 64.8 | I39: 0 | J39: 0 | K39: 0 | L39: 9166.11
B40: Polynésie française | C40: 4 | D40: 206 | E40: 9484.48 | F40: 1 | G40: 10 | H40: 341.2 | I40: 0 | J40: 0 | K40: 0 | L40: 9825.68
B41: Saint-Pierre-et-Miquelon | C41: 0 | D41: 0 | E41: 0 | F41: 0 | G41: 0 | H41: 0 | I41: 0 | J41: 0 | K41: 0 | L41: 0
B42: ="Sous-total "&'Détail Bilatéraux'!$U$2 -> Sous-total 2016 | C42: 11 | D42: 476 | E42: 18585.79 | F42: 2 | G42: 12 | H42: 406 | I42: 0 | J42: 0 | K42: 0 | L42: 18991.79
B43: ="Sous-total "&'Détail Bilatéraux'!$U$2-1 -> Sous-total 2015 | C43: 16 | D43: 587 | E43: 20614.77 | F43: 1 | G43: 11 | H43: 290.29 | I43: 1 | J43: 1 | K43: 39 | L43: 20944.06
B44: % évolution | C44: =IF(C43<>0,(C42-C43)/C43*100,"-") -> -31.25 | D44: =IF(D43<>0,(D42-D43)/D43*100,"-") -> -18.90971039 | E44: -9.842360599 | F44: 100 | G44: 9.090909091 | H44: 39.86013986 | I44: =IF(I43<>0,(I42-I43)/I43*100,"-") -> -100 | J44: =IF(J43<>0,(J42-J43)/J43*100,"-") -> -100 | K44: -100 | L44: -9.321354121
B46: ="Total Général "&'Détail Bilatéraux'!$U$2 -> Total Général 2016 | C46: =C35+C42 -> 1144 | D46: 34937 | E46: 1127010.57 | F46: 131 | G46: 3334 | H46: 102080.92 | I46: 1 | J46: 2 | K46: 85.94 | L46: =L35+L42 -> 1229177.43
B47: ="Total Général "&'Détail Bilatéraux'!$U$2-1 -> Total Général 2015 | C47: =C36+C43 -> 1167 | D47: 33576 | E47: 1033224.46 | F47: 163 | G47: 3628 | H47: 112609.1 | I47: 3 | J47: 21 | K47: 842.33 | L47: 1146675.89
B48: % évolution | C48: =IF(C47<>0,(C46-C47)/C47*100,"-") -> -1.970865467 | D48: =IF(D47<>0,(D46-D47)/D47*100,"-") -> 4.053490589 | E48: =IF(E47<>0,(E46-E47)/E47*100,"-") -> 9.077031529 | F48: =IF(F47<>0,(F46-F47)/F47*100,"-") -> -19.63190184 | G48: =IF(G47<>0,(G46-G47)/G47*100,"-") -> -8.103638368 | H48: =IF(H47<>0,(H46-H47)/H47*100,"-") -> -9.349315464 | I48: =IF(I47<>0,(I46-I47)/I47*100,"-") -> -66.66666667 | J48: =IF(J47<>0,(J46-J47)/J47*100,"-") -> -90.47619048 | K48: =IF(K47<>0,(K46-K47)/K47*100,"-") -> -89.79734783 | L48: =IF(L47<>0,(L46-L47)/L47*100,"-") -> 7.194843872
A56: Evolution sur 10 ans des prestations en espèces d'incapacité temporaire (assurances maladie-maternité)
B59: Transfert de résidence autorisé | E59: Séjour temporaire | H59: Détachement | K59: Total
B60: Nombre de | C60: Nombre | D60: Montant | E60: Nombre de | F60: Nombre | G60: Montant | H60: Nombre de | I60: Nombre | J60: Montant | K60: Nombre de | L60: Montant | N60: %
A61: Année | B61: bénéfi- | C61: de jours | D61: (euros) | E61: bénéfi- | F61: de jours | G61: (euros) | H61: bénéfi- | I61: de jours | J61: (euros) | K61: bénéfi | L61: (euros) | N61: évo-
B62: ciaires | C62: indemnisés | E62: ciaires | F62: indemnisés | H62: ciaires | I62: indemnisés | K62: ciaires | N62: lution
A63: 2007 | B63: 3805 | C63: 129909 | D63: 3654129.28 | E63: 469 | F63: 11531 | G63: 356475.53 | H63: 4 | I63: 31 | J63: 1245.53 | K63: =B63+E63+H63 -> 4278 | L63: 4016217.01 | M63: (a)
A64: 2008 | B64: 3514 | C64: 117618 | D64: 3612875.2 | E64: 357 | F64: 8758 | G64: 273219.95 | H64: 11 | I64: 235 | J64: 8096.57 | K64: =B64+E64+H64 -> 3882 | L64: 3895125.21 | M64: (b) | N64: =(L64-L63)/L63*100 -> -3.01507114
A65: 2009 | B65: 3327 | C65: 112602 | D65: 3411161.08 | E65: 416 | F65: 11167 | G65: 366412.82 | H65: 9 | I65: 374 | J65: 9591.09 | K65: 3752 | L65: 3788559.03 | M65: (c) | N65: -2.735885864
A66: 2010 | B66: 2746 | C66: 90550 | D66: 2736970.17 | E66: 245 | F66: 5800 | G66: 174684.15 | H66: 8 | I66: 269 | J66: 12184.7 | K66: 2999 | L66: 2923911.5 | M66: (d) | N66: -22.82259622
A67: 2011 | B67: 1906 | C67: 59828 | D67: 1835724.89 | E67: 286 | F67: 7373 | G67: 223269.73 | H67: 5 | I67: 37 | J67: 1115.26 | K67: 2197 | L67: 2061374.17 | M67: (e) | N67: -29.49943355
A68: 2012 | B68: 1526 | C68: 49628 | D68: 1498846.76 | E68: 225 | F68: 6084 | G68: 182845.51 | H68: 5 | I68: 44 | J68: 2115.57 | K68: 1756 | L68: 1685293.95 | M68: (f) | N68: -18.24415118
A69: 2013 | B69: 1334 | C69: 44276 | D69: 1367303.15 | E69: 127 | F69: 3123 | G69: 90620.14 | H69: 5 | I69: 61 | J69: 1984.27 | K69: 1466 | L69: 1460857.74 | M69: (g) | N69: -13.31733316
A70: 2014 | B70: 1202 | C70: 37792 | D70: 1140606.4 | E70: 155 | F70: 3815 | G70: 116914.16 | H70: 4 | I70: 77 | J70: 3821.99 | K70: 1361 | L70: 1261342.55 | N70: -13.65740034
A71: 2015 | B71: 1167 | C71: 33576 | D71: 1033224.46 | E71: 164 | F71: 3643 | G71: 113255.9 | H71: 3 | I71: 21 | J71: 842.33 | K71: 1334 | L71: 1147322.69 | N71: -9.03956344
A72: 2016 | B72: 1144 | C72: 34937 | D72: 1127010.57 | E72: 131 | F72: 3334 | G72: 102080.92 | H72: 1 | I72: 2 | J72: 85.94 | K72: 1276 | L72: 1229177.43 | N72: 7.134413074
B73: (a) : y compris 3 018,86 € pour le Maroc au titre de l'article 19 de la convention du 9 juillet 1965 et 1 347,81 € en Andorre au titre de l'article 8 de l'arrangement général.
B74: (b) : y compris 933,49 € en Andorre au titre de l'article 8 de l'arrangement général.
B75: (c) : y compris 1 394,04 € en Andorre au titre de l'article 8 de l'arrangement général.
B76: (d) : y compris 72,48 € en Andorre au titre de l'article 8 de l'arrangement général.
B77: (e) : y compris 1 264,29 € en Andorre au titre de l'article 8 de l'arrangement général.
B78: (f) : y compris 1 214 € pour le Maroc au titre de l'article 19 de la convention du 9 juillet 1965 et 272,11 € en Andorre au titre de l'article 8 de l'arrangement général.
B79: (g) : y compris 950,18 € en Andorre au titre de l'article 8 de l'arrangement général.

Sheet Détail Bilatéraux
B1: ACCORDS INTERNATIONAUX | T1: 1 | U1: =INDEX(ListePays,$T$1,2) -> 0
U2: 2016
O3: Aller directement vers :
B4: Paiements des prestations en espèces d'incapacité temporaire
B5: (assurances maladie-maternité)
A7: CONVENTIONS BILATERALES | D7: Transfert de résidence autorisé | G7: Séjour temporaire | J7: Détachement | M7: Total des
B8: Pays | C8: Régime | D8: Nombre de | E8: Nombre de jours | F8: Montant | G8: Nombre de | H8: Nombre de jours | I8: Montant | J8: Nombre de | K8: Nombre de jours | L8: Montant | M8: montants
D9: bénéficiaires | E9: indemnisés | F9: (euros) | G9: bénéficiaires | H9: indemnisés | I9: (euros) | J9: bénéficiaires | K9: indemnisés | L9: (euros) | M9: (euros)
C10: Général | D10: 220 | E10: 6042 | F10: 180249.46 | G10: 14 | H10: 392 | I10: 11576.45 | J10: 0 | K10: 0 | L10: 0 | M10: 191825.91
C11: Agricole | D11: 0 | E11: 0 | F11: 0 | G11: 0 | H11: 0 | I11: 0 | J11: 0 | K11: 0 | L11: 0 | M11: 0
C12: Minier | D12: 0 | E12: 0 | F12: 0 | G12: 0 | H12: 0 | I12: 0 | J12: 0 | K12: 0 | L12: 0 | M12: 0
B13: Algérie | C13: Clercs de notaire | D13: 0 | E13: 0 | F13: 0 | G13: 0 | H13: 0 | I13: 0 | J13: 0 | K13: 0 | L13: 0 | M13: 0
C14: Total 2016 | D14: =SUM(D10:D13) -> 220 | E14: 6042 | F14: 180249.46 | G14: 14 | H14: 392 | I14: 11576.45 | J14: 0 | K14: 0 | L14: 0 | M14: =SUM(M10:M13) -> 191825.91
C15: Total 2015 | D15: 227 | E15: 6450 | F15: 181077.32 | G15: 28 | H15: 768 | I15: 22616.85 | J15: 0 | K15: 0 | L15: 0 | M15: 203694.17
C16: % évolution | D16: =IF(D15<>0,(D14-D15)/D15*100,"-") -> -3.083700441 | E16: =IF(E15<>0,(E14-E15)/E15*100,"-") -> -6.325581395 | F16: =IFERROR((F14-F15)/F15*100,"-") -> -0.4571859137 | G16: -50 | H16: -48.95833333 | I16: =IFERROR((I14-I15)/I15*100,"-") -> -48.81493223 | J16: - | K16: - | L16: =IFERROR((L14-L15)/L15*100,"-") -> - | M16: =IFERROR((M14-M15)/M15*100,"-") -> -5.826509419
C17: Général | D17: 12 | E17: 62 | F17: 2204.55 | G17: 1 | H17: 3 | I17: 95.52 | J17: 1 | K17: 2 | L17: 85.94 | M17: 2386.01
C18: Agricole | D18: 0 | E18: 0 | F18: 0 | G18: 0 | H18: 0 | I18: 0 | J18: 0 | K18: 0 | L18: 0 | M18: 0
C19: Minier | D19: 0 | E19: 0 | F19: 0 | G19: 0 | H19: 0 | I19: 0 | J19: 0 | K19: 0 | L19: 0 | M19: 0
B20: Andorre | C20: Clercs de notaire | D20: 0 | E20: 0 | F20: 0 | G20: 0 | H20: 0 | I20: 0 | J20: 0 | K20: 0 | L20: 0 | M20: 0
C21: Total 2016 | D21: =SUM(D17:D20) -> 12 | E21: 62 | F21: 2204.55 | G21: 1 | H21: 3 | I21: 95.52 | J21: =SUM(J17:J20) -> 1 | K21: =SUM(K17:K20) -> 2 | L21: =SUM(L17:L20) -> 85.94 | M21: =SUM(M17:M20) -> 2386.01
C22: Total 2015 | D22: 9 | E22: 80 | F22: 3147.38 | G22: 1 | H22: 8 | I22: 344.96 | J22: 0 | K22: 0 | L22: 0 | M22: 3492.34
C23: % évolution | D23: =IF(D22<>0,(D21-D22)/D22*100,"-") -> 33.33333333 | E23: =IF(E22<>0,(E21-E22)/E22*100,"-") -> -22.5 | F23: =IFERROR((F21-F22)/F22*100,"-") -> -29.95602692 | G23: 0 | H23: -62.5 | I23: =IFERROR((I21-I22)/I22*100,"-") -> -72.30983302 | J23: =IF(J22<>0,((J21-J22)/J22*100)," - ") -> - | K23: =IF(K22<>0,((K21-K22)/K22*100)," - ") -> - | L23: =IFERROR((L21-L22)/L22*100,"-") -> - | M23: =IFERROR((M21-M22)/M22*100,"-") -> -31.6787598
C24: Général | D24: 5 | E24: 139 | F24: 4393.47 | G24: 0 | H24: 0 | I24: 0 | J24: 0 | K24: 0 | M24: 4393.47
C25: Agricole | D25: 0 | E25: 0 | F25: 0 | G25: 0 | H25: 0 | I25: 0 | J25: 0 | K25: 0 | M25: 0
C26: Minier | D26: 0 | E26: 0 | F26: 0 | G26: 0 | H26: 0 | I26: 0 | J26: 0 | K26: 0 | M26: 0
B27: Bénin | C27: Clercs de notaire | D27: 0 | E27: 0 | F27: 0 | G27: 0 | H27: 0 | I27: 0 | J27: 0 | K27: 0 | M27: 0
C28: Total 2016 | D28: =SUM(D24:D27) -> 5 | E28: 139 | F28: 4393.47 | G28: 0 | H28: 0 | I28: 0 | J28: 0 | K28: 0 | L28: 0 | M28: =SUM(M24:M27) -> 4393.47
C29: Total 2015 | D29: 5 | E29: 200 | F29: 6519.46 | G29: 1 | H29: 34 | I29: 1270.58 | J29: 0 | K29: 0 | L29: 0 | M29: 7790.04
C30: % évolution | D30: =IF(D29<>0,(D28-D29)/D29*100,"-") -> 0 | E30: =IF(E29<>0,(E28-E29)/E29*100,"-") -> -30.5 | F30: =IFERROR((F28-F29)/F29*100,"-") -> -32.60990941 | G30: =IF(G29<>0,((G28-G29)/G29*100)," - ") -> -100 | H30: -100 | I30: =IFERROR((I28-I29)/I29*100,"-") -> -100 | J30: - | K30: - | L30: =IFERROR((L28-L29)/L29*100,"-") -> - | M30: =IFERROR((M28-M29)/M29*100,"-") -> -43.60144492
C31: Général | D31: 4 | E31: 107 | F31: 4608.62 | G31: 1 | H31: 24 | I31: 597.84 | J31: 0 | K31: 0 | L31: 0 | M31: 5206.46
C32: Agricole | D32: 0 | E32: 0 | F32: 0 | G32: 0 | H32: 0 | I32: 0 | J32: 0 | K32: 0 | L32: 0 | M32: 0
C33: Minier | D33: 0 | E33: 0 | F33: 0 | G33: 0 | H33: 0 | I33: 0 | J33: 0 | K33: 0 | L33: 0 | M33: 0
B34: Bosnie-Herzégovine | C34: Clercs de notaire | D34: 0 | E34: 0 | F34: 0 | G34: 0 | H34: 0 | I34: 0 | J34: 0 | K34: 0 | L34: 0 | M34: 0
C35: Total 2016 | D35: =SUM(D31:D34) -> 4 | E35: 107 | F35: 4608.62 | G35: 1 | H35: 24 | I35: 597.84 | J35: 0 | K35: 0 | L35: 0 | M35: =SUM(M31:M34) -> 5206.46
C36: Total 2015 | D36: 16 | E36: 306 | F36: 9823.72 | G36: 1 | H36: 16 | I36: 395.52 | J36: 0 | K36: 0 | L36: 0 | M36: 10219.24
C37: % évolution | D37: =IF(D36<>0,((D35-D36)/D36*100)," - ") -> -75 | E37: -65.03267974 | F37: =IFERROR((F35-F36)/F36*100,"-") -> -53.08681436 | G37: 0 | H37: 50 | I37: =IFERROR((I35-I36)/I36*100,"-") -> 51.15291262 | J37: - | K37: - | L37: =IFERROR((L35-L36)/L36*100,"-") -> - | M37: =IFERROR((M35-M36)/M36*100,"-") -> -49.05237571
A38: CONVENTIONS BILATERALES | C38: Général | D38: 3 | E38: 73 | F38: 3708.88 | G38: 0 | H38: 0 | J38: 0 | K38: 0 | M38: 3708.88
C39: Agricole | D39: 0 | E39: 0 | F39: 0 | G39: 0 | H39: 0 | J39: 0 | K39: 0 | M39: 0
C40: Minier | D40: 0 | E40: 0 | F40: 0 | G40: 0 | H40: 0 | J40: 0 | K40: 0 | M40: 0
B41: Cameroun | C41: Clercs de notaire | D41: 0 | E41: 0 | F41: 0 | G41: 0 | H41: 0 | J41: 0 | K41: 0 | M41: 0
C42: Total 2016 | D42: =SUM(D38:D41) -> 3 | E42: 73 | F42: 3708.88 | G42: 0 | H42: 0 | I42: 0 | J42: 0 | K42: 0 | L42: 0 | M42: =SUM(M38:M41) -> 3708.88
C43: Total 2015 | D43: 3 | E43: 79 | F43: 1916.54 | G43: 0 | H43: 0 | J43: 0 | K43: 0 | M43: 1916.54
C44: % évolution | D44: =IF(D43<>0,((D42-D43)/D43*100)," - ") -> 0 | E44: -7.594936709 | F44: =IFERROR((F42-F43)/F43*100,"-") -> 93.51957173 | G44: - | H44: - | I44: =IFERROR((I42-I43)/I43*100,"-") -> - | J44: - | K44: - | L44: =IFERROR((L42-L43)/L43*100,"-") -> - | M44: =IFERROR((M42-M43)/M43*100,"-") -> 93.51957173
C45: Général | D45: 4 | E45: 145 | F45: 4485.99 | G45: 0 | H45: 0 | I45: 0 | J45: 0 | K45: 0 | L45: 0 | M45: 4485.99
C46: Agricole | D46: 0 | E46: 0 | F46: 0 | G46: 0 | H46: 0 | I46: 0 | J46: 0 | K46: 0 | L46: 0 | M46: 0
C47: Minier | D47: 0 | E47: 0 | F47: 0 | G47: 0 | H47: 0 | I47: 0 | J47: 0 | K47: 0 | L47: 0 | M47: 0
B48: Cap-Vert | C48: Clercs de notaire | D48: 0 | E48: 0 | F48: 0 | G48: 0 | H48: 0 | I48: 0 | J48: 0 | K48: 0 | L48: 0 | M48: 0
C49: Total 2016 | D49: =SUM(D45:D48) -> 4 | E49: =SUM(E45:E48) -> 145 | F49: =SUM(F45:F48) -> 4485.99 | G49: =SUM(G45:G48) -> 0 | H49: 0 | I49: 0 | J49: =SUM(J45:J48) -> 0 | K49: =SUM(K45:K48) -> 0 | L49: =SUM(L45:L48) -> 0 | M49: =SUM(M45:M48) -> 4485.99
C50: Total 2015 | D50: 5 | E50: 137 | F50: 4957.12 | G50: 1 | H50: 18 | I50: 728.46 | J50: 0 | K50: 0 | L50: 0 | M50: 5685.58
C51: % évolution | D51: =IF(D50<>0,((D49-D50)/D50*100)," - ") -> -20 | E51: =IF(E50<>0,((E49-E50)/E50*100)," - ") -> 5.839416058 | F51: =IFERROR((F49-F50)/F50*100,"-") -> -9.504107224 | G51: =IF(G50<>0,((G49-G50)/G50*100)," -") -> -100 | H51: =IF(H50<>0,((H49-H50)/H50*100)," - ") -> -100 | I51: =IFERROR((I49-I50)/I50*100,"-") -> -100 | J51: =IF(J50<>0,((J49-J50)/J50*100)," - ") -> - | K51: =IF(K50<>0,((K49-K50)/K50*100)," - ") -> - | L51: =IFERROR((L49-L50)/L50*100,"-") -> - | M51: =IFERROR((M49-M50)/M50*100,"-") -> -21.0988149
C52: Général | D52: 7 | E52: 181 | F52: 5358.35 | G52: 0 | H52: 0 | J52: 0 | K52: 0 | M52: 5358.35
C53: Agricole | D53: 0 | E53: 0 | F53: 0 | G53: 0 | H53: 0 | J53: 0 | K53: 0 | M53: 0
C54: Minier | D54: 0 | E54: 0 | F54: 0 | G54: 0 | H54: 0 | J54: 0 | K54: 0 | M54: 0
B55: Congo | C55: Clercs de notaire | D55: 0 | E55: 0 | F55: 0 | G55: 0 | H55: 0 | J55: 0 | K55: 0 | M55: 0
C56: Total 2016 | D56: =SUM(D52:D55) -> 7 | E56: =SUM(E52:E55) -> 181 | F56: =SUM(F52:F55) -> 5358.35 | G56: =SUM(G52:G55) -> 0 | H56: 0 | I56: 0 | J56: 0 | K56: 0 | L56: 0 | M56: =SUM(M52:M55) -> 5358.35
C57: Total 2015 | D57: 18 | E57: 510 | F57: 25253.43 | G57: 0 | H57: 0 | J57: 0 | K57: 0 | L57: 0 | M57: 25253.43
C58: % évolution | D58: =IF(D57<>0,((D56-D57)/D57*100)," - ") -> -61.11111111 | E58: =IF(E57<>0,((E56-E57)/E57*100)," - ") -> -64.50980392 | F58: =IFERROR((F56-F57)/F57*100,"-") -> -78.78169421 | G58: =IF(G57<>0,((G56-G57)/G57*100)," -") -> - | H58: =IF(H57<>0,((H56-H57)/H57*100)," - ") -> - | I58: =IFERROR((I56-I57)/I57*100,"-") -> - | J58: - | K58: - | L58: =IFERROR((L56-L57)/L57*100,"-") -> - | M58: =IFERROR((M56-M57)/M57*100,"-") -> -78.78169421
C59: Général | D59: 15 | E59: 381 | F59: 10273.47 | G59: 0 | H59: 0 | J59: 0 | K59: 0 | M59: 10273.47
C60: Agricole | D60: 0 | E60: 0 | F60: 0 | G60: 0 | H60: 0 | J60: 0 | K60: 0 | M60: 0
C61: Minier | D61: 0 | E61: 0 | F61: 0 | G61: 0 | H61: 0 | J61: 0 | K61: 0 | M61: 0
B62: Côte d'Ivoire | C62: Clercs de notaire | D62: 0 | E62: 0 | F62: 0 | G62: 0 | H62: 0 | J62: 0 | K62: 0 | M62: 0
C63: =[1]Parametres!$D$2 -> Total 2016 | D63: =SUM(D59:D62) -> 15 | E63: 381 | F63: 10273.47 | G63: 0 | H63: 0 | I63: 0 | J63: 0 | K63: 0 | L63: 0 | M63: =SUM(M59:M62) -> 10273.47
C64: =[1]Parametres!$C$2 -> Total 2015 | D64: 15 | E64: 583 | F64: 18757.99 | G64: 0 | H64: 0 | J64: 0 | K64: 0 | M64: 18757.99
C65: % évolution | D65: =IF(D64<>0,((D63-D64)/D64*100)," - ") -> 0 | E65: -34.6483705 | F65: =IFERROR((F63-F64)/F64*100,"-") -> -45.23149868 | G65: - | H65: - | I65: =IFERROR((I63-I64)/I64*100,"-") -> - | J65: - | K65: - | L65: =IFERROR((L63-L64)/L64*100,"-") -> - | M65: =IFERROR((M63-M64)/M64*100,"-") -> -45.23149868
C66: Général | D66: 0 | E66: 0 | F66: 0 | G66: 0 | H66: 0 | I66: 0 | J66: 0 | K66: 0 | L66: 0 | M66: 0
C67: Agricole | D67: 0 | E67: 0 | F67: 0 | G67: 0 | H67: 0 | I67: 0 | J67: 0 | K67: 0 | L67: 0 | M67: 0
C68: Minier | D68: 0 | E68: 0 | F68: 0 | G68: 0 | H68: 0 | I68: 0 | J68: 0 | K68: 0 | L68: 0 | M68: 0
B69: Gabon | C69: Clercs de notaire | D69: 0 | E69: 0 | F69: 0 | G69: 0 | H69: 0 | I69: 0 | J69: 0 | K69: 0 | L69: 0 | M69: 0
C70: Total 2016 | D70: =SUM(D66:D69) -> 0 | E70: 0 | F70: 0 | G70: 0 | H70: 0 | I70: 0 | J70: 0 | K70: 0 | L70: 0 | M70: 0
C71: Total 2015 | D71: 0 | E71: 0 | F71: 0 | G71: 0 | H71: 0 | J71: 0 | K71: 0 | L71: 0 | M71: 0
C72: % évolution | D72: =IF(D71<>0,((D70-D71)/D71*100)," - ") -> - | E72: =IF(E71<>0,((E70-E71)/E71*100)," - ") -> - | F72: =IFERROR((F70-F71)/F71*100,"-") -> - | G72: =IF(G71<>0,((G70-G71)/G71*100)," - ") -> - | H72: =IF(H71<>0,((H70-H71)/H71*100)," - ") -> - | I72: =IFERROR((I70-I71)/I71*100,"-") -> - | J72: =IF(J71<>0,((J70-J71)/J71*100)," - ") -> - | K72: =IF(K71<>0,((K70-K71)/K71*100)," - ") -> - | L72: =IFERROR((L70-L71)/L71*100,"-") -> - | M72: =IFERROR((M70-M71)/M71*100,"-") -> -
C73: Général | D73: 0 | E73: 0 | G73: 0 | H73: 0 | I73: 0 | J73: 0 | K73: 0 | M73: 0
C74: Agricole | D74: 0 | E74: 0 | G74: 0 | H74: 0 | I74: 0 | J74: 0 | K74: 0 | M74: 0
C75: Minier | D75: 0 | E75: 0 | G75: 0 | H75: 0 | I75: 0 | J75: 0 | K75: 0 | M75: 0
B76: Guernesey | C76: Clercs de notaire | D76: 0 | E76: 0 | G76: 0 | H76: 0 | I76: 0 | J76: 0 | K76: 0 | M76: 0
C77: Total 2016 | D77: =SUM(D73:D76) -> 0 | E77: 0 | F77: 0 | G77: 0 | H77: 0 | I77: 0 | J77: 0 | K77: 0 | L77: 0 | M77: =SUM(M73:M76) -> 0
C78: Total 2015 | D78: 1 | E78: 52 | F78: 1929.13 | G78: 0 | H78: 0 | I78: 0 | J78: 0 | K78: 0 | L78: 0 | M78: 1929.13
C79: % évolution | D79: =IF(D78<>0,((D77-D78)/D78*100)," - ") -> -100 | E79: -100 | F79: =IFERROR((F77-F78)/F78*100,"-") -> -100 | G79: - | H79: - | I79: =IFERROR((I77-I78)/I78*100,"-") -> - | J79: - | K79: - | L79: =IFERROR((L77-L78)/L78*100,"-") -> - | M79: =IFERROR((M77-M78)/M78*100,"-") -> -100
A80: CONVENTIONS BILATERALES | C80: Général | D80: 1 | E80: 5 | F80: 213 | G80: 0 | H80: 0 | I80: 0 | J80: 0 | K80: 0 | M80: 213
C81: Agricole | D81: 0 | E81: 0 | F81: 0 | G81: 0 | H81: 0 | I81: 0 | J81: 0 | K81: 0 | M81: 0
C82: Minier | D82: 0 | E82: 0 | F82: 0 | G82: 0 | H82: 0 | I82: 0 | J82: 0 | K82: 0 | M82: 0
B83: Jersey | C83: Clercs de notaire | D83: 0 | E83: 0 | F83: 0 | G83: 0 | H83: 0 | I83: 0 | J83: 0 | K83: 0 | M83: 0
C84: Total 2016 | D84: =SUM(D80:D83) -> 1 | E84: 5 | F84: 213 | G84: 0 | H84: 0 | I84: 0 | J84: 0 | K84: 0 | L84: 0 | M84: =SUM(M80:M83) -> 213
C85: Total 2015 | D85: 0 | E85: 0 | F85: 0 | G85: 0 | H85: 0 | I85: 0 | J85: 0 | K85: 0 | L85: 0 | M85: 0
C86: % évolution | D86: =IF(D85<>0,((D84-D85)/D85*100)," - ") -> - | E86: - | F86: =IFERROR((F84-F85)/F85*100,"-") -> - | G86: - | H86: - | I86: =IFERROR((I84-I85)/I85*100,"-") -> - | J86: - | K86: - | L86: =IFERROR((L84-L85)/L85*100,"-") -> - | M86: =IFERROR((M84-M85)/M85*100,"-") -> -
C87: Général | D87: 7 | E87: 171 | F87: 6298.47 | G87: 0 | H87: 0 | I87: 0 | J87: 0 | K87: 0 | L87: 0 | M87: 6298.47
C88: Agricole | D88: 0 | E88: 0 | F88: 0 | G88: 0 | H88: 0 | I88: 0 | J88: 0 | K88: 0 | L88: 0 | M88: 0
C89: Minier | D89: 0 | E89: 0 | F89: 0 | G89: 0 | H89: 0 | I89: 0 | J89: 0 | K89: 0 | L89: 0 | M89: 0
B90: Kosovo | C90: Clercs de notaire | D90: 0 | E90: 0 | F90: 0 | G90: 0 | H90: 0 | I90: 0 | J90: 0 | K90: 0 | L90: 0 | M90: 0
C91: Total 2016 | D91: =SUM(D87:D90) -> 7 | E91: 171 | F91: 6298.47 | G91: 0 | H91: 0 | I91: 0 | J91: 0 | K91: 0 | L91: 0 | M91: =SUM(M87:M90) -> 6298.47
C92: Total 2015 | D92: 5 | E92: 145 | F92: 5004.94 | G92: 0 | H92: 0 | I92: 0 | J92: 0 | K92: 0 | L92: 0 | M92: 5004.94
C93: % évolution | D93: =IF(D92<>0,((D91-D92)/D92*100)," - ") -> 40 | E93: =IF(E92<>0,((E91-E92)/E92*100)," - ") -> 17.93103448 | F93: =IFERROR((F91-F92)/F92*100,"-") -> 25.84506508 | G93: =IF(G92<>0,((G91-G92)/G92*100)," -") -> - | H93: =IF(H92<>0,((H91-H92)/H92*100)," - ") -> - | I93: =IFERROR((I91-I92)/I92*100,"-") -> - | J93: - | K93: - | L93: =IFERROR((L91-L92)/L92*100,"-") -> - | M93: =IFERROR((M91-M92)/M92*100,"-") -> 25.84506508
C94: Général | D94: 3 | E94: 243 | F94: 8631.44 | G94: 0 | H94: 0 | I94: 0 | J94: 0 | K94: 0 | L94: 0 | M94: 8631.44
C95: Agricole | D95: 0 | E95: 0 | F95: 0 | G95: 0 | H95: 0 | I95: 0 | J95: 0 | K95: 0 | L95: 0 | M95: 0
C96: Minier | D96: 0 | E96: 0 | F96: 0 | G96: 0 | H96: 0 | I96: 0 | J96: 0 | K96: 0 | L96: 0 | M96: 0
B97: Macédoine | C97: Clercs de notaire | D97: 0 | E97: 0 | F97: 0 | G97: 0 | H97: 0 | I97: 0 | J97: 0 | K97: 0 | L97: 0 | M97: 0
C98: Total 2016 | D98: =SUM(D94:D97) -> 3 | E98: =SUM(E94:E97) -> 243 | F98: =SUM(F94:F97) -> 8631.44 | G98: =SUM(G94:G97) -> 0 | H98: 0 | I98: 0 | J98: 0 | K98: 0 | L98: 0 | M98: =SUM(M94:M97) -> 8631.44
C99: Total 2015 | D99: 4 | E99: 123 | F99: 4541.19 | G99: 0 | H99: 0 | I99: 0 | J99: 0 | K99: 0 | L99: 0 | M99: 4541.19
C100: % évolution | D100: =IF(D99<>0,((D98-D99)/D99*100)," - ") -> -25 | E100: =IF(E99<>0,((E98-E99)/E99*100)," - ") -> 97.56097561 | F100: =IFERROR((F98-F99)/F99*100,"-") -> 90.07000368 | G100: =IF(G99<>0,((G98-G99)/G99*100)," -") -> - | H100: =IF(H99<>0,((H98-H99)/H99*100)," - ") -> - | I100: =IFERROR((I98-I99)/I99*100,"-") -> - | J100: - | K100: - | L100: =IFERROR((L98-L99)/L99*100,"-") -> - | M100: =IFERROR((M98-M99)/M99*100,"-") -> 90.07000368
C101: Général | D101: 19 | E101: 767 | F101: 29413.51 | G101: 0 | H101: 0 | J101: 0 | K101: 0 | M101: 29413.51
C102: Agricole | D102: 0 | E102: 0 | F102: 0 | G102: 0 | H102: 0 | J102: 0 | K102: 0 | M102: 0
C103: Minier | D103: 0 | E103: 0 | F103: 0 | G103: 0 | H103: 0 | J103: 0 | K103: 0 | M103: 0
B104: Madagascar | C104: Clercs de notaire | D104: 0 | E104: 0 | F104: 0 | G104: 0 | H104: 0 | J104: 0 | K104: 0 | M104: 0
C105: Total 2016 | D105: =SUM(D101:D104) -> 19 | E105: 767 | F105: 29413.51 | G105: 0 | H105: 0 | I105: 0 | J105: 0 | K105: 0 | L105: 0 | M105: =SUM(M101:M104) -> 29413.51
C106: Total 2015 | D106: 15 | E106: 353 | F106: 10100.61 | G106: 0 | H106: 0 | J106: 0 | K106: 0 | M106: 10100.61
C107: % évolution | D107: =IF(D106<>0,((D105-D106)/D106*100)," - ") -> 26.66666667 | E107: 117.2804533 | F107: =IFERROR((F105-F106)/F106*100,"-") -> 191.2052836 | G107: - | H107: - | I107: =IFERROR((I105-I106)/I106*100,"-") -> - | J107: - | K107: - | L107: =IFERROR((L105-L106)/L106*100,"-") -> - | M107: =IFERROR((M105-M106)/M106*100,"-") -> 191.2052836
C108: Général | D108: 14 | E108: 779 | F108: 23749.15 | G108: 9 | H108: 296 | I108: 8576.8 | J108: 0 | K108: 0 | L108: 0 | M108: 32325.95
C109: Agricole | D109: 0 | E109: 0 | F109: 0 | G109: 0 | H109: 0 | I109: 0 | J109: 0 | K109: 0 | L109: 0 | M109: 0
C110: Minier | D110: 0 | E110: 0 | F110: 0 | G110: 0 | H110: 0 | I110: 0 | J110: 0 | K110: 0 | L110: 0 | M110: 0
B111: Mali | C111: Clercs de notaire | D111: 0 | E111: 0 | F111: 0 | G111: 0 | H111: 0 | I111: 0 | J111: 0 | K111: 0 | L111: 0 | M111: 0
C112: Total 2016 | D112: =SUM(D108:D111) -> 14 | E112: 779 | F112: 23749.15 | G112: 9 | H112: 296 | I112: 8576.8 | J112: 0 | K112: 0 | L112: 0 | M112: =SUM(M108:M111) -> 32325.95
C113: Total 2015 | D113: 16 | E113: 828 | F113: 23953.86 | G113: 6 | H113: 247 | I113: 9192.16 | J113: 0 | K113: 0 | L113: 0 | M113: 33146.02
C114: % évolution | D114: =IF(D113<>0,((D112-D113)/D113*100)," - ") -> -12.5 | E114: -5.917874396 | F114: =IFERROR((F112-F113)/F113*100,"-") -> -0.8546013043 | G114: 50 | H114: 19.83805668 | I114: =IFERROR((I112-I113)/I113*100,"-") -> -6.694400446 | J114: - | K114: - | L114: =IFERROR((L112-L113)/L113*100,"-") -> - | M114: =IFERROR((M112-M113)/M113*100,"-") -> -2.474113031
C115: Général | D115: 304 | E115: 9408 | F115: 298262.16 | G115: 57 | H115: 1103 | I115: 30313.24 | J115: 0 | K115: 0 | L115: 0 | M115: 328575.4
C116: Agricole | D116: 5 | E116: 383 | F116: 9779.27 | G116: 2 | H116: 44 | I116: 1162.28 | J116: 0 | K116: 0 | L116: 0 | M116: 10941.55
C117: Minier | D117: 0 | E117: 0 | F117: 0 | G117: 0 | H117: 0 | I117: 0 | J117: 0 | K117: 0 | L117: 0 | M117: 0
B118: Maroc | C118: Clercs de notaire | D118: 0 | E118: 0 | F118: 0 | G118: 0 | H118: 0 | I118: 0 | J118: 0 | K118: 0 | L118: 0 | M118: 0
C119: Total 2016 | D119: =SUM(D115:D118) -> 309 | E119: =SUM(E115:E118) -> 9791 | F119: =SUM(F115:F118) -> 308041.43 | G119: =SUM(G115:G118) -> 59 | H119: 1147 | I119: 31475.52 | J119: 0 | K119: 0 | L119: 0 | M119: =SUM(M115:M118) -> 339516.95
C120: Total 2015 | D120: 292 | E120: 9016 | F120: 257403 | G120: 68 | H120: 1243 | I120: 37215.25 | J120: 1 | K120: 4 | L120: 159.64 | M120: 294777.89
C121: % évolution | D121: =IF(D120<>0,((D119-D120)/D120*100)," - ") -> 5.821917808 | E121: =IF(E120<>0,((E119-E120)/E120*100)," - ") -> 8.595829636 | F121: =IFERROR((F119-F120)/F120*100,"-") -> 19.67282044 | G121: =IF(G120<>0,((G119-G120)/G120*100)," - ") -> -13.23529412 | H121: -7.723250201 | I121: =IFERROR((I119-I120)/I120*100,"-") -> -15.4230591 | J121: -100 | K121: -100 | L121: =IFERROR((L119-L120)/L120*100,"-") -> -100 | M121: =IFERROR((M119-M120)/M120*100,"-") -> 15.1772102
A122: CONVENTIONS BILATERALES | C122: Général | D122: 0 | E122: 0 | F122: 0 | G122: 0 | H122: 0 | J122: 0 | K122: 0 | M122: 0
C123: Agricole | D123: 0 | E123: 0 | F123: 0 | G123: 0 | H123: 0 | J123: 0 | K123: 0 | M123: 0
C124: Minier | D124: 0 | E124: 0 | F124: 0 | G124: 0 | H124: 0 | J124: 0 | K124: 0 | M124: 0
B125: Mauritanie | C125: Clercs de notaire | D125: 0 | E125: 0 | F125: 0 | G125: 0 | H125: 0 | J125: 0 | K125: 0 | M125: 0
C126: Total 2016 | D126: =SUM(D122:D125) -> 0 | E126: 0 | F126: 0 | G126: 0 | H126: 0 | I126: 0 | J126: 0 | K126: 0 | L126: 0 | M126: =SUM(M122:M125) -> 0
C127: Total 2015 | D127: 2 | E127: 99 | F127: 4735.17 | G127: 0 | H127: 0 | J127: 0 | K127: 0 | M127: 4735.17
C128: % évolution | D128: =IF(D127<>0,((D126-D127)/D127*100)," - ") -> -100 | E128: -100 | F128: =IFERROR((F126-F127)/F127*100,"-") -> -100 | G128: - | H128: - | I128: =IFERROR((I126-I127)/I127*100,"-") -> - | J128: - | K128: - | L128: =IFERROR((L126-L127)/L127*100,"-") -> - | M128: =IFERROR((M126-M127)/M127*100,"-") -> -100
C129: Général | D129: 13 | E129: 170 | F129: 5475.29 | G129: 1 | H129: 8 | I129: 248.4 | J129: 0 | K129: 0 | L129: 0 | M129: 5723.69
C130: Agricole | D130: 0 | E130: 0 | F130: 0 | G130: 0 | H130: 0 | I130: 0 | J130: 0 | K130: 0 | L130: 0 | M130: 0
C131: Minier | D131: 0 | E131: 0 | F131: 0 | G131: 0 | H131: 0 | I131: 0 | J131: 0 | K131: 0 | L131: 0 | M131: 0
B132: Monténégro | C132: Clercs de notaire | D132: 0 | E132: 0 | F132: 0 | G132: 0 | H132: 0 | I132: 0 | J132: 0 | K132: 0 | L132: 0 | M132: 0
C133: Total 2016 | D133: =SUM(D129:D132) -> 13 | E133: 170 | F133: 5475.29 | G133: 1 | H133: 8 | I133: 248.4 | J133: 0 | K133: 0 | L133: 0 | M133: =SUM(M129:M132) -> 5723.69
C134: Total 2015 | D134: 6 | E134: 88 | F134: 3175.42 | G134: 0 | H134: 0 | I134: 0 | J134: 0 | K134: 0 | L134: 0 | M134: 3175.42
C135: % évolution | D135: =IF(D134<>0,((D133-D134)/D134*100)," - ") -> 116.6666667 | E135: 93.18181818 | F135: =IFERROR((F133-F134)/F134*100,"-") -> 72.42726946 | G135: - | H135: - | I135: =IFERROR((I133-I134)/I134*100,"-") -> - | J135: - | K135: - | L135: =IFERROR((L133-L134)/L134*100,"-") -> - | M135: =IFERROR((M133-M134)/M134*100,"-") -> 80.24985671
C136: Général | D136: 0 | E136: 0 | F136: 0 | G136: 0 | H136: 0 | I136: 0 | J136: 0 | K136: 0 | M136: 0
C137: Agricole | D137: 0 | E137: 0 | F137: 0 | G137: 0 | H137: 0 | I137: 0 | J137: 0 | K137: 0 | M137: 0
C138: Minier | D138: 0 | E138: 0 | F138: 0 | G138: 0 | H138: 0 | I138: 0 | J138: 0 | K138: 0 | M138: 0
B139: Niger | C139: Clercs de notaire | D139: 0 | E139: 0 | F139: 0 | G139: 0 | H139: 0 | I139: 0 | J139: 0 | K139: 0 | M139: 0
C140: Total 2016 | D140: =SUM(D136:D139) -> 0 | E140: 0 | F140: 0 | G140: 0 | H140: 0 | I140: 0 | J140: 0 | K140: 0 | L140: 0 | M140: =SUM(M136:M139) -> 0
C141: Total 2015 | D141: 0 | E141: 0 | F141: 0 | G141: 0 | H141: 0 | I141: 0 | J141: 0 | K141: 0 | L141: 0 | M141: 0
C142: % évolution | D142: =IF(D141<>0,((D140-D141)/D141*100)," - ") -> - | E142: - | F142: =IFERROR((F140-F141)/F141*100,"-") -> - | G142: - | H142: - | I142: =IFERROR((I140-I141)/I141*100,"-") -> - | J142: - | K142: - | L142: =IFERROR((L140-L141)/L141*100,"-") -> - | M142: =IFERROR((M140-M141)/M141*100,"-") -> -
C143: Général | D143: 39 | E143: 988 | F143: 40064.27 | G143: 2 | H143: 53 | I143: 1141.36 | J143: 0 | K143: 0 | L143: 0 | M143: 41205.63
C144: Agricole | D144: 0 | E144: 0 | F144: 0 | G144: 0 | H144: 0 | I144: 0 | J144: 0 | K144: 0 | L144: 0 | M144: 0
C145: Minier | D145: 0 | E145: 0 | F145: 0 | G145: 0 | H145: 0 | I145: 0 | J145: 0 | K145: 0 | L145: 0 | M145: 0
B146: Québec | C146: Clercs de notaire | D146: 0 | E146: 0 | F146: 0 | G146: 0 | H146: 0 | I146: 0 | J146: 0 | K146: 0 | L146: 0 | M146: 0
C147: Total 2016 | D147: =SUM(D143:D146) -> 39 | E147: =SUM(E143:E146) -> 988 | F147: =SUM(F143:F146) -> 40064.27 | G147: =SUM(G143:G146) -> 2 | H147: 53 | I147: 1141.36 | J147: =SUM(J143:J146) -> 0 | K147: =SUM(K143:K146) -> 0 | L147: =SUM(L143:L146) -> 0 | M147: =SUM(M143:M146) -> 41205.63
C148: Total 2015 | D148: 32 | E148: 878 | F148: 45297.28 | G148: 1 | H148: 16 | I148: 184 | J148: 0 | K148: 0 | L148: 0 | M148: 45481.28
C149: % évolution | D149: =IF(D148<>0,((D147-D148)/D148*100)," - ") -> 21.875 | E149: =IF(E148<>0,((E147-E148)/E148*100)," - ") -> 12.5284738 | F149: =IFERROR((F147-F148)/F148*100,"-") -> -11.55259212 | G149: =IF(G148<>0,((G147-G148)/G148*100)," - ") -> 100 | H149: 231.25 | I149: =IFERROR((I147-I148)/I148*100,"-") -> 520.3043478 | J149: =IF(J148<>0,((J147-J148)/J148*100)," - ") -> - | K149: =IF(K148<>0,((K147-K148)/K148*100)," - ") -> - | L149: =IFERROR((L147-L148)/L148*100,"-") -> - | M149: =IFERROR((M147-M148)/M148*100,"-") -> -9.400900766
C150: Général | D150: 57 | E150: 1677 | F150: 54580.82 | G150: 0 | H150: 0 | J150: 0 | K150: 0 | M150: 54580.82
C151: Agricole | D151: 0 | E151: 0 | F151: 0 | G151: 0 | H151: 0 | J151: 0 | K151: 0 | M151: 0
C152: Minier | D152: 0 | E152: 0 | F152: 0 | G152: 0 | H152: 0 | J152: 0 | K152: 0 | M152: 0
B153: Sénégal | C153: Clercs de notaire | D153: 0 | E153: 0 | F153: 0 | G153: 0 | H153: 0 | J153: 0 | K153: 0 | M153: 0
C154: Total 2016 | D154: =SUM(D150:D153) -> 57 | E154: 1677 | F154: 54580.82 | G154: 0 | H154: 0 | I154: 0 | J154: 0 | K154: 0 | L154: 0 | M154: =SUM(M150:M153) -> 54580.82
C155: Total 2015 | D155: 47 | E155: 1084 | F155: 35198.08 | G155: 0 | H155: 0 | J155: 1 | K155: 16 | L155: 643.69 | M155: 35841.77
C156: % évolution | D156: =IF(D155<>0,((D154-D155)/D155*100)," - ") -> 21.27659574 | E156: 54.70479705 | F156: =IFERROR((F154-F155)/F155*100,"-") -> 55.06760596 | G156: - | H156: - | I156: =IFERROR((I154-I155)/I155*100,"-") -> - | J156: -100 | K156: -100 | L156: =IFERROR((L154-L155)/L155*100,"-") -> -100 | M156: =IFERROR((M154-M155)/M155*100,"-") -> 52.28271372
C157: Général | D157: 51 | E157: 1630 | F157: 48203.09 | G157: 0 | H157: 0 | I157: 0 | J157: 0 | K157: 0 | L157: 0 | M157: 48203.09
C158: Agricole | D158: 0 | E158: 0 | F158: 0 | G158: 0 | H158: 0 | I158: 0 | J158: 0 | K158: 0 | L158: 0 | M158: 0
C159: Minier | D159: 0 | E159: 0 | F159: 0 | G159: 0 | H159: 0 | I159: 0 | J159: 0 | K159: 0 | L159: 0 | M159: 0
B160: Serbie | C160: Clercs de notaire | D160: 0 | E160: 0 | F160: 0 | G160: 0 | H160: 0 | I160: 0 | J160: 0 | K160: 0 | L160: 0 | M160: 0
C161: Total 2016 | D161: =SUM(D157:D160) -> 51 | E161: 1630 | F161: 48203.09 | G161: 0 | H161: 0 | I161: 0 | J161: 0 | K161: 0 | L161: 0 | M161: =SUM(M157:M160) -> 48203.09
C162: Total 2015 | D162: 59 | E162: 1432 | F162: 43917.62 | G162: 2 | H162: 45 | I162: 983.16 | J162: 0 | K162: 0 | L162: 0 | M162: 44900.78
C163: % évolution | D163: =IF(D162<>0,((D161-D162)/D162*100)," - ") -> -13.55932203 | E163: =IF(E162<>0,((E161-E162)/E162*100)," - ") -> 13.82681564 | F163: =IFERROR((F161-F162)/F162*100,"-") -> 9.757974134 | G163: =IF(G162<>0,((G161-G162)/G162*100)," -") -> -100 | H163: =IF(H162<>0,((H161-H162)/H162*100)," - ") -> -100 | I163: =IFERROR((I161-I162)/I162*100,"-") -> -100 | J163: - | K163: - | L163: =IFERROR((L161-L162)/L162*100,"-") -> - | M163: =IFERROR((M161-M162)/M162*100,"-") -> 7.354682925
A164: CONVENTIONS BILATERALES | C164: Général | D164: 7 | E164: 165 | F164: 4536.5 | G164: 0 | H164: 0 | I164: 0 | J164: 0 | K164: 0 | M164: 4536.5
C165: Agricole | D165: 0 | E165: 0 | F165: 0 | G165: 0 | H165: 0 | I165: 0 | J165: 0 | K165: 0 | M165: 0
C166: Minier | D166: 0 | E166: 0 | F166: 0 | G166: 0 | H166: 0 | I166: 0 | J166: 0 | K166: 0 | M166: 0
B167: Togo | C167: Clercs de notaire | D167: 0 | E167: 0 | F167: 0 | G167: 0 | H167: 0 | I167: 0 | J167: 0 | K167: 0 | M167: 0
C168: Total 2016 | D168: =SUM(D164:D167) -> 7 | E168: 165 | F168: 4536.5 | G168: 0 | H168: 0 | I168: 0 | J168: 0 | K168: 0 | L168: 0 | M168: =SUM(M164:M167) -> 4536.5
C169: Total 2015 | D169: 3 | E169: 138 | F169: 3880.08 | G169: 0 | H169: 0 | I169: 0 | J169: 0 | K169: 0 | L169: 0 | M169: 3880.08
C170: % évolution | D170: =IF(D169<>0,((D168-D169)/D169*100)," - ") -> 133.3333333 | E170: 19.56521739 | F170: =IFERROR((F168-F169)/F169*100,"-") -> 16.91769242 | G170: - | H170: - | I170: =IFERROR((I168-I169)/I169*100,"-") -> - | J170: - | K170: - | L170: =IFERROR((L168-L169)/L169*100,"-") -> - | M170: =IFERROR((M168-M169)/M169*100,"-") -> 16.91769242
C171: Général | D171: 146 | E171: 4424 | F171: 162289.38 | G171: 32 | H171: 1180 | I171: 40620.59 | J171: 0 | K171: 0 | L171: 0 | M171: 202909.97
C172: Agricole | D172: 1 | E172: 46 | F172: 1351.02 | G172: 1 | H172: 36 | I172: 1103.04 | J172: 0 | K172: 0 | L172: 0 | M172: 2454.06
C173: Minier | D173: 0 | E173: 0 | F173: 0 | G173: 0 | H173: 0 | I173: 0 | J173: 0 | K173: 0 | L173: 0 | M173: 0
B174: Tunisie | C174: Clercs de notaire | D174: 0 | E174: 0 | F174: 0 | G174: 0 | H174: 0 | I174: 0 | J174: 0 | K174: 0 | L174: 0 | M174: 0
C175: Total 2016 | D175: =SUM(D171:D174) -> 147 | E175: 4470 | F175: 163640.4 | G175: 33 | H175: 1216 | I175: 41723.63 | J175: 0 | K175: 0 | L175: 0 | M175: =SUM(M171:M174) -> 205364.03
C176: Total 2015 | D176: 152 | E176: 3881 | F176: 121507.29 | G176: 37 | H176: 956 | I176: 30348.52 | J176: 0 | K176: 0 | L176: 0 | M176: 151855.81
C177: % évolution | D177: =IF(D176<>0,((D175-D176)/D176*100)," - ") -> -3.289473684 | E177: 15.1765009 | F177: =IFERROR((F175-F176)/F176*100,"-") -> 34.67537627 | G177: =IF(G176<>0,((G175-G176)/G176*100)," - ") -> -10.81081081 | H177: 27.19665272 | I177: =IFERROR((I175-I176)/I176*100,"-") -> 37.48159713 | J177: =IF(J176<>0,((J175-J176)/J176*100)," - ") -> - | K177: - | L177: =IFERROR((L175-L176)/L176*100,"-") -> - | M177: =IFERROR((M175-M176)/M176*100,"-") -> 35.23620203
C178: Général | D178: 196 | E178: 6475 | F178: 200294.62 | G178: 9 | H178: 183 | I178: 6239.4 | J178: 0 | K178: 0 | L178: 0 | M178: 206534.02
C179: Agricole | D179: 0 | E179: 0 | F179: 0 | G179: 0 | H179: 0 | I179: 0 | J179: 0 | K179: 0 | L179: 0 | M179: 0
C180: Minier | D180: 0 | E180: 0 | F180: 0 | G180: 0 | H180: 0 | I180: 0 | J180: 0 | K180: 0 | L180: 0 | M180: 0
B181: Turquie | C181: Clercs de notaire | D181: 0 | E181: 0 | F181: 0 | G181: 0 | H181: 0 | I181: 0 | J181: 0 | K181: 0 | L181: 0 | M181: 0
C182: Total 2016 | D182: =SUM(D178:D181) -> 196 | E182: 6475 | F182: 200294.62 | G182: 9 | H182: 183 | I182: 6239.4 | J182: 0 | K182: 0 | L182: 0 | M182: =SUM(M178:M181) -> 206534.02
C183: Total 2015 | D183: 219 | E183: 6527 | F183: 200513.06 | G183: 16 | H183: 266 | I183: 9039.35 | J183: 0 | K183: 0 | L183: 0 | M183: 209552.41
C184: % évolution | D184: =IF(D183<>0,((D182-D183)/D183*100)," - ") -> -10.50228311 | E184: -0.7966906695 | F184: =IFERROR((F182-F183)/F183*100,"-") -> -0.1089405348 | G184: =IF(G183<>0,((G182-G183)/G183*100)," - ") -> -43.75 | H184: -31.20300752 | I184: =IFERROR((I182-I183)/I183*100,"-") -> -30.97512542 | J184: =IF(J183<>0,((J182-J183)/J183*100)," - ") -> - | K184: - | L184: =IFERROR((L182-L183)/L183*100,"-") -> - | M184: =IFERROR((M182-M183)/M183*100,"-") -> -1.44039861
C185: Général | D185: 1127 | E185: 34032 | F185: 1097294.49 | G185: 126 | H185: 3242 | I185: 99409.6 | J185: 1 | K185: 2 | L185: 85.94 | M185: 1196790.03
C186: Agricole | D186: 6 | E186: 429 | F186: 11130.29 | G186: 3 | H186: 80 | I186: 2265.32 | J186: 0 | K186: 0 | L186: 0 | M186: 13395.61
B187: Sous | C187: Minier | D187: 0 | E187: 0 | F187: 0 | G187: 0 | H187: 0 | I187: 0 | J187: 0 | K187: 0 | L187: 0 | M187: 0
B188: total | C188: Clercs de notaire | D188: 0 | E188: 0 | F188: 0 | G188: 0 | H188: 0 | I188: 0 | J188: 0 | K188: 0 | L188: 0 | M188: 0
C189: Total 2016 | D189: =SUM(D185:D187) -> 1133 | E189: =SUM(E185:E187) -> 34461 | F189: 1108424.78 | G189: 129 | H189: 3322 | I189: 101674.92 | J189: 1 | K189: 2 | L189: 85.94 | M189: =SUM(M185:M188) -> 1210185.64
C190: Total 2015 | D190: 1151 | E190: 32989 | F190: 1012609.69 | G190: 162 | H190: 3617 | I190: 112318.81 | J190: 2 | K190: 20 | L190: 803.33 | M190: 1125731.83
C191: % évolution | D191: =IF(D190<>0,((D189-D190)/D190*100)," - ") -> -1.563857515 | E191: =IF(E190<>0,((E189-E190)/E190*100)," - ") -> 4.462093425 | F191: =IF(F190<>0,((F189-F190)/F190*100)," - ") -> 9.462193671 | G191: =IF(G190<>0,((G189-G190)/G190*100)," -") -> -20.37037037 | H191: =IF(H190<>0,((H189-H190)/H190*100)," - ") -> -8.155930329 | I191: -9.476498193 | J191: -50 | K191: -90 | L191: -89.3020303 | M191: 7.502125084

Sheet Détail Décrets
B1: ACCORDS INTERNATIONAUX
B5: Paiements des prestations en espèces d'incapacité temporaire
B6: (assurances maladie-maternité)
A8: DECRETS DE COORDINATION | D8: Transfert de résidence autorisé | G8: Séjour temporaire | J8: Détachement
D9: Nombre de | E9: Nombre | F9: Montant | G9: Nombre de | H9: Nombre | I9: Montant | J9: Nombre de | K9: Nombre | L9: Montant | M9: Total des
B10: Pays | C10: Régime | D10: bénéfi- | E10: de jours | F10: (euros) | G10: bénéfi- | H10: de jours | I10: (euros) | J10: bénéfi- | K10: de jours | L10: (euros) | M10: montants
D11: ciaires | E11: indemnisés | G11: ciaires | H11: indemnisés | J11: ciaires | K11: indemnisés | M11: (euros)
C12: Général | D12: 7 | E12: 270 | F12: 9101.31 | G12: 1 | H12: 2 | I12: 64.8 | J12: 0 | K12: 0 | L12: 0 | M12: =F12+I12+L12 -> 9166.11
C13: Agricole | D13: 0 | E13: 0 | F13: 0 | G13: 0 | H13: 0 | I13: 0 | J13: 0 | K13: 0 | L13: 0 | M13: =F13+I13+L13 -> 0
C14: Minier | D14: 0 | E14: 0 | F14: 0 | G14: 0 | H14: 0 | I14: 0 | J14: 0 | K14: 0 | L14: 0 | M14: =F14+I14+L14 -> 0
B15: Nouvelle-Calédonie | C15: Clercs de notaire | D15: 0 | E15: 0 | F15: 0 | G15: 0 | H15: 0 | I15: 0 | J15: 0 | K15: 0 | L15: 0 | M15: =F15+I15+L15 -> 0
C16: Total 2016 | D16: =SUM(D12:D15) -> 7 | E16: 270 | F16: 9101.31 | G16: 1 | H16: 2 | I16: 64.8 | J16: 0 | K16: 0 | L16: 0 | M16: 9166.11
C17: Total 2015 | D17: 12 | E17: 481 | F17: 17409.83 | G17: 0 | H17: 0 | I17: 0 | J17: 0 | K17: 0 | L17: 0 | M17: =F17+I17+L17 -> 17409.83
C18: % évolution | D18: =IF(D17<>0,((D16-D17)/D17*100)," - ") -> -41.66666667 | E18: -43.86694387 | F18: -47.7231541 | G18: - | H18: - | I18: - | J18: - | K18: - | L18: - | M18: -47.35095058
C19: Général | D19: 4 | E19: 206 | F19: 9484.48 | G19: 1 | H19: 10 | I19: 341.2 | J19: 0 | K19: 0 | L19: 0 | M19: =L19+I19+F19 -> 9825.68
C20: Agricole | D20: 0 | E20: 0 | F20: 0 | G20: 0 | H20: 0 | I20: 0 | J20: 0 | K20: 0 | L20: 0 | M20: =L20+I20+F20 -> 0
C21: Minier | D21: 0 | E21: 0 | F21: 0 | G21: 0 | H21: 0 | I21: 0 | J21: 0 | K21: 0 | L21: 0 | M21: =L21+I21+F21 -> 0
B22: Polynésie française | C22: Clercs de notaire | D22: 0 | E22: 0 | F22: 0 | G22: 0 | H22: 0 | I22: 0 | J22: 0 | K22: 0 | L22: 0 | M22: =L22+I22+F22 -> 0
C23: Total 2016 | D23: =SUM(D19:D22) -> 4 | E23: 206 | F23: 9484.48 | G23: 1 | H23: 10 | I23: 341.2 | J23: 0 | K23: 0 | L23: 0 | M23: 9825.68
C24: Total 2015 | D24: 4 | E24: 106 | F24: 3204.94 | G24: 1 | H24: 11 | I24: 290.29 | J24: 1 | K24: 1 | L24: 39 | M24: =F24+I24+L24 -> 3534.23
C25: % évolution | D25: =IF(D24<>0,((D23-D24)/D24*100)," - ") -> 0 | E25: =IF(E24<>0,((E23-E24)/E24*100)," - ") -> 94.33962264 | F25: =IF(F24<>0,((F23-F24)/F24*100)," - ") -> 195.9331532 | G25: =IF(G24<>0,((G23-G24)/G24*100)," -") -> 0 | H25: =IF(H24<>0,((H23-H24)/H24*100)," - ") -> -9.090909091 | I25: 17.53763478 | J25: -100 | K25: -100 | L25: -100 | M25: 178.0147302
C26: Général | D26: 0 | E26: 0 | F26: 0 | G26: 0 | H26: 0 | I26: 0 | J26: 0 | K26: 0 | L26: 0 | M26: =L26+I26+F26 -> 0
C27: Agricole | D27: 0 | E27: 0 | F27: 0 | G27: 0 | H27: 0 | I27: 0 | J27: 0 | K27: 0 | L27: 0 | M27: =L27+I27+F27 -> 0
C28: Minier | D28: 0 | E28: 0 | F28: 0 | G28: 0 | H28: 0 | I28: 0 | J28: 0 | K28: 0 | L28: 0 | M28: =L28+I28+F28 -> 0
B29: Saint-Pierre-et-Miquelon | C29: Clercs de notaire | D29: 0 | E29: 0 | F29: 0 | G29: 0 | H29: 0 | I29: 0 | J29: 0 | K29: 0 | L29: 0 | M29: =L29+I29+F29 -> 0
C30: Total 2016 | D30: =SUM(D26:D29) -> 0 | E30: 0 | F30: 0 | G30: 0 | H30: 0 | I30: 0 | J30: 0 | K30: 0 | L30: 0 | M30: 0
C31: Total 2015 | D31: 0 | E31: 0 | F31: 0 | G31: 0 | H31: 0 | I31: 0 | J31: 0 | K31: 0 | L31: 0 | M31: =F31+I31+L31 -> 0
C32: % évolution | D32: =IF(D31<>0,((D30-D31)/D31*100)," - ") -> - | E32: =IF(E31<>0,((E30-E31)/E31*100)," - ") -> - | F32: =IF(F31<>0,((F30-F31)/F31*100)," - ") -> - | G32: =IF(G31<>0,((G30-G31)/G31*100)," -") -> - | H32: =IF(H31<>0,((H30-H31)/H31*100)," - ") -> - | I32: - | J32: - | K32: - | L32: - | M32: -
C33: Général | D33: 11 | E33: 476 | F33: 18585.79 | G33: 2 | H33: 12 | I33: 406 | J33: 0 | K33: 0 | L33: 0 | M33: =+M12+M19+M26 -> 18991.79
C34: Agricole | D34: 0 | E34: 0 | F34: 0 | G34: 0 | H34: 0 | I34: 0 | J34: 0 | K34: 0 | L34: 0 | M34: =+M13+M20+M27 -> 0
B35: Sous | C35: Minier | D35: 0 | E35: 0 | F35: 0 | G35: 0 | H35: 0 | I35: 0 | J35: 0 | K35: 0 | L35: 0 | M35: =+M14+M21+M28 -> 0
B36: total | C36: Clercs de notaire | D36: 0 | E36: 0 | F36: 0 | G36: 0 | H36: 0 | I36: 0 | J36: 0 | K36: 0 | L36: 0 | M36: =+M15+M22+M29 -> 0
C37: Total 2016 | D37: =SUM(D33:D35) -> 11 | E37: 476 | F37: 18585.79 | G37: 2 | H37: 12 | I37: 406 | J37: 0 | K37: 0 | L37: 0 | M37: =SUM(M33:M36) -> 18991.79
C38: Total 2015 | D38: =D17+D24+D31 -> 16 | E38: =E17+E24+E31 -> 587 | F38: =F17+F24+F31 -> 20614.77 | G38: =G17+G24+G31 -> 1 | H38: 11 | I38: 290.29 | J38: 1 | K38: 1 | L38: 39 | M38: =M17+M24+M31 -> 20944.06
C39: % évolution | D39: =IF(D38<>0,((D37-D38)/D38*100)," - ") -> -31.25 | E39: =IF(E38<>0,((E37-E38)/E38*100)," - ") -> -18.90971039 | F39: =IF(F38<>0,((F37-F38)/F38*100)," - ") -> -9.842360599 | G39: =IF(G38<>0,((G37-G38)/G38*100)," -") -> 100 | H39: =IF(H38<>0,((H37-H38)/H38*100)," - ") -> 9.090909091 | I39: 39.86013986 | J39: -100 | K39: -100 | L39: -100 | M39: -9.321354121

Sheet Total Général
B1: ACCORDS INTERNATIONAUX
B4: Paiements des prestations en espèces d'incapacité temporaire
B5: (assurances maladie-maternité)
D7: Transfert de résidence autorisé | G7: Séjour temporaire | J7: Détachement | M7: Total des
B8: Pays | C8: Régime | D8: Nombre de | E8: Nombre de jours | F8: Montant | G8: Nombre de | H8: Nombre de jours | I8: Montant | J8: Nombre de | K8: Nombre de jours | L8: Montant | M8: montants
D9: bénéficiaires | E9: indemnisés | F9: (euros) | G9: bénéficiaires | H9: indemnisés | I9: (euros) | J9: bénéficiaires | K9: indemnisés | L9: (euros) | M9: (euros)
C10: Général | D10: ='Détail Bilatéraux'!D185+'Détail Décrets'!D33 -> 1138 | E10: ='Détail Bilatéraux'!E185+'Détail Décrets'!E33 -> 34508 | F10: ='Détail Bilatéraux'!F185+'Détail Décrets'!F33 -> 1115880.28 | G10: ='Détail Bilatéraux'!G185+'Détail Décrets'!G33 -> 128 | H10: ='Détail Bilatéraux'!H185+'Détail Décrets'!H33 -> 3254 | I10: ='Détail Bilatéraux'!I185+'Détail Décrets'!I33 -> 99815.6 | J10: ='Détail Bilatéraux'!J185+'Détail Décrets'!J33 -> 1 | K10: ='Détail Bilatéraux'!K185+'Détail Décrets'!K33 -> 2 | L10: ='Détail Bilatéraux'!L185+'Détail Décrets'!L33 -> 85.94 | M10: ='Détail Bilatéraux'!M185+'Détail Décrets'!M33 -> 1215781.82
C11: Agricole | D11: ='Détail Bilatéraux'!D186+'Détail Décrets'!D34 -> 6 | E11: ='Détail Bilatéraux'!E186+'Détail Décrets'!E34 -> 429 | F11: ='Détail Bilatéraux'!F186+'Détail Décrets'!F34 -> 11130.29 | G11: ='Détail Bilatéraux'!G186+'Détail Décrets'!G34 -> 3 | H11: ='Détail Bilatéraux'!H186+'Détail Décrets'!H34 -> 80 | I11: ='Détail Bilatéraux'!I186+'Détail Décrets'!I34 -> 2265.32 | J11: ='Détail Bilatéraux'!J186+'Détail Décrets'!J34 -> 0 | K11: ='Détail Bilatéraux'!K186+'Détail Décrets'!K34 -> 0 | L11: ='Détail Bilatéraux'!L186+'Détail Décrets'!L34 -> 0 | M11: ='Détail Bilatéraux'!M186+'Détail Décrets'!M34 -> 13395.61
B12: Total | C12: Minier | D12: ='Détail Bilatéraux'!D187+'Détail Décrets'!D35 -> 0 | E12: ='Détail Bilatéraux'!E187+'Détail Décrets'!E35 -> 0 | F12: ='Détail Bilatéraux'!F187+'Détail Décrets'!F35 -> 0 | G12: ='Détail Bilatéraux'!G187+'Détail Décrets'!G35 -> 0 | H12: ='Détail Bilatéraux'!H187+'Détail Décrets'!H35 -> 0 | I12: ='Détail Bilatéraux'!I187+'Détail Décrets'!I35 -> 0 | J12: ='Détail Bilatéraux'!J187+'Détail Décrets'!J35 -> 0 | K12: ='Détail Bilatéraux'!K187+'Détail Décrets'!K35 -> 0 | L12: ='Détail Bilatéraux'!L187+'Détail Décrets'!L35 -> 0 | M12: ='Détail Bilatéraux'!M187+'Détail Décrets'!M35 -> 0
B13: Général | C13: Clercs de notaire | D13: ='Détail Bilatéraux'!D188+'Détail Décrets'!D36 -> 0 | E13: ='Détail Bilatéraux'!E188+'Détail Décrets'!E36 -> 0 | F13: ='Détail Bilatéraux'!F188+'Détail Décrets'!F36 -> 0 | G13: ='Détail Bilatéraux'!G188+'Détail Décrets'!G36 -> 0 | H13: ='Détail Bilatéraux'!H188+'Détail Décrets'!H36 -> 0 | I13: ='Détail Bilatéraux'!I188+'Détail Décrets'!I36 -> 0 | J13: ='Détail Bilatéraux'!J188+'Détail Décrets'!J36 -> 0 | K13: ='Détail Bilatéraux'!K188+'Détail Décrets'!K36 -> 0 | L13: ='Détail Bilatéraux'!L188+'Détail Décrets'!L36 -> 0 | M13: ='Détail Bilatéraux'!M188+'Détail Décrets'!M36 -> 0
C14: ="Total "&'Détail Bilatéraux'!$U$2 -> Total 2016 | D14: =SUM(D10:D13) -> 1144 | E14: =SUM(E10:E13) -> 34937 | F14: =SUM(F10:F13) -> 1127010.57 | G14: =SUM(G10:G13) -> 131 | H14: 3334 | I14: 102080.92 | J14: 1 | K14: 2 | L14: =SUM(L10:L13) -> 85.94 | M14: =SUM(M10:M13) -> 1229177.43
C15: ="Total "&'Détail Bilatéraux'!$U$2-1 -> Total 2015 | D15: ='Détail Bilatéraux'!D190+'Détail Décrets'!D38 -> 1167 | E15: ='Détail Bilatéraux'!E190+'Détail Décrets'!E38 -> 33576 | F15: ='Détail Bilatéraux'!F190+'Détail Décrets'!F38 -> 1033224.46 | G15: ='Détail Bilatéraux'!G190+'Détail Décrets'!G38 -> 163 | H15: ='Détail Bilatéraux'!H190+'Détail Décrets'!H38 -> 3628 | I15: ='Détail Bilatéraux'!I190+'Détail Décrets'!I38 -> 112609.1 | J15: ='Détail Bilatéraux'!J190+'Détail Décrets'!J38 -> 3 | K15: ='Détail Bilatéraux'!K190+'Détail Décrets'!K38 -> 21 | L15: ='Détail Bilatéraux'!L190+'Détail Décrets'!L38 -> 842.33 | M15: ='Détail Bilatéraux'!M190+'Détail Décrets'!M38 -> 1146675.89
C16: % évolution | D16: =IF(D15<>0,((D14-D15)/D15*100)," - ") -> -1.970865467 | E16: =IF(E15<>0,((E14-E15)/E15*100)," - ") -> 4.053490589 | F16: =IF(F15<>0,((F14-F15)/F15*100)," - ") -> 9.077031529 | G16: =IF(G15<>0,((G14-G15)/G15*100)," -") -> -19.63190184 | H16: =IF(H15<>0,((H14-H15)/H15*100)," - ") -> -8.103638368 | I16: -9.349315464 | J16: -66.66666667 | K16: -90.47619048 | L16: -89.79734783 | M16: 7.194843872

Sheet Paramètres (hidden)
A2: Algérie | B2: B10
A3: Andorre | B3: B17
A4: Argentine | B4: B24
A5: Bénin | B5: B31
A6: Bosnie-Herzégovine | B6: B38
A7: Brésil | B7: B45
A8: Cameroun | B8: B52
A9: Cap-Vert | B9: B59
A10: Congo | B10: B66
A11: Côte d'Ivoire | B11: B73
A12: Gabon | B12: B80
A13: Guernesey | B13: B87
A14: Jersey | B14: B94
A15: Kosovo | B15: B101
A16: Macédoine | B16: B108
A17: Madagascar | B17: B115
A18: Mali | B18: B122
A19: Maroc | B19: B129
A20: Mauritanie | B20: B136
A21: Monténégro | B21: B143
A22: Niger | B22: B150
A23: Québec | B23: B157
A24: Sénégal | B24: B164
A25: Serbie | B25: B171
A26: Togo | B26: B178
A27: Tunisie | B27: B185
A28: Turquie | B28: B192
A29: Uruguay | B29: B199
